fUSD/lending_fUSD_20260429
["ID","MTS","AMOUNT","RATE_DAILY","PERIOD"]
[421334430,1777457433000,-315.04872347,9.002e-05,2]
[421334429,1777457433000,-1680.0,9.002e-05,2]
[421334428,1777457433000,-166.66,8.967e-05,2]
[421334424,1777457433000,-639.0,8.807e-05,2]
[421334427,1777457433000,-150.0,8.839e-05,2]
[421334426,1777457433000,-639.0,8.81e-05,2]
[421334434,1777457433000,-5000.0,9.002e-05,2]
[421334425,1777457433000,-11392.94,8.807e-05,2]
[421334413,1777457433000,-12248.7594291,8.46e-05,2]
[421334423,1777457433000,-198.0,8.802e-05,2]
[421334415,1777457433000,-780.50251545,8.477e-05,2]
[421334435,1777457433000,-4860.63579113,9.002e-05,2]
[421334417,1777457433000,-639.0,8.564e-05,2]
[421334414,1777457433000,-639.0,8.474e-05,2]
[421334420,1777457433000,-541.25,8.663e-05,2]
[421334421,1777457433000,-166.66,8.681e-05,2]
[421334418,1777457433000,-11392.94,8.569e-05,2]
[421334422,1777457433000,-731.0,8.746e-05,2]
[421334419,1777457433000,-365.0,8.643e-05,2]
[421334454,1777457434000,-150.0,9.616e-05,2]
[421334463,1777457434000,-174.61919141,9.767e-05,2]
[421334460,1777457434000,-151.0,9.767e-05,2]
[421334469,1777457434000,-151.0,9.818e-05,2]
[421334468,1777457434000,-157.143464,9.818e-05,2]
[421334471,1777457434000,-151.0,9.822e-05,2]
[421334464,1777457434000,-279.9045709,9.767e-05,2]
[421334465,1777457434000,-209.40437684,9.767e-05,2]
[421334467,1777457434000,-5000.0,9.81e-05,2]
[421334473,1777457434000,-150.0,9.83e-05,2]
[421334466,1777457434000,-6889.89098324,9.81e-05,2]
[421334479,1777457434000,-416.0,9.866e-05,2]
[421334472,1777457434000,-166.66,9.827e-05,2]
[421334475,1777457434000,-150.0,9.866e-05,2]
[421334477,1777457434000,-1220.0,9.866e-05,2]
[421334480,1777457434000,-151.0,9.877e-05,2]
[421334476,1777457434000,-927.0,9.866e-05,2]
[421334478,1777457434000,-1663.0,9.866e-05,2]
[421334461,1777457434000,-743.50770149,9.767e-05,2]
[421334470,1777457434000,-1155.89,9.819e-05,2]
[421334455,1777457434000,-1725.98,9.712e-05,2]
[421334448,1777457434000,-222.10612541,9.616e-05,2]
[421334462,1777457434000,-184.76258549,9.767e-05,2]
[421334437,1777457434000,-500.0,9.008e-05,2]
[421334439,1777457434000,-2561.2978,9.014e-05,2]
[421334438,1777457434000,-255.0,9.008e-05,2]
[421334443,1777457434000,-166.66,9.254e-05,2]
[421334444,1777457434000,-2000.0,9.342e-05,2]
[421334445,1777457434000,-1155.89,9.351e-05,2]
[421334441,1777457434000,-180.52,9.153e-05,2]
[421334442,1777457434000,-1600.0,9.249e-05,2]
[421334440,1777457434000,-11392.94,9.045e-05,2]
[421334446,1777457434000,-731.0,9.504e-05,2]
[421334474,1777457434000,-1266.0,9.866e-05,2]
[421334447,1777457434000,-166.66,9.541e-05,2]
[421334450,1777457434000,-150.0,9.616e-05,2]
[421334449,1777457434000,-216.83912453,9.616e-05,2]
[421334453,1777457434000,-150.0,9.616e-05,2]
[421334451,1777457434000,-150.0,9.616e-05,2]
[421334458,1777457434000,-1428.38747117,9.767e-05,2]
[421334459,1777457434000,-200.0,9.767e-05,2]
[421334456,1777457434000,-731.0,9.756e-05,2]
[421334457,1777457434000,-721.12765535,9.767e-05,2]
[421334481,1777457434000,-5000.0,9.9e-05,2]
[421334452,1777457434000,-150.0,9.616e-05,2]
[421334483,1777457434000,-433.0,9.909e-05,2]
[421334506,1777457434000,-151.0,0.0001,2]
[421334510,1777457434000,-151.0,0.0001,2]
[421334509,1777457434000,-500.0,0.0001,2]
[421334512,1777457434000,-151.0,0.0001,2]
[421334511,1777457434000,-500.0,0.0001,2]
[421334519,1777457434000,-151.0,0.0001,2]
[421334517,1777457434000,-500.0,0.0001,2]
[421334514,1777457434000,-151.0,0.0001,2]
[421334513,1777457434000,-500.0,0.0001,2]
[421334505,1777457434000,-500.0,0.0001,2]
[421334518,1777457434000,-151.0,0.0001,2]
[421334516,1777457434000,-151.0,0.0001,2]
[421334521,1777457434000,-151.0,0.0001,2]
[421334522,1777457434000,-151.0,0.0001,2]
[421334523,1777457434000,-500.0,0.0001,2]
[421334524,1777457434000,-151.0,0.0001,2]
[421334526,1777457434000,-151.0,0.0001,2]
[421334525,1777457434000,-500.0,0.0001,2]
[421334527,1777457434000,-500.0,0.0001,2]
[421334485,1777457434000,-970.29701037,0.0001,2]
[421334515,1777457434000,-500.0,0.0001,2]
[421334504,1777457434000,-151.0,0.0001,2]
[421334520,1777457434000,-151.0,0.0001,2]
[421334507,1777457434000,-500.0,0.0001,2]
[421334484,1777457434000,-153.94316657,9.932e-05,2]
[421334501,1777457434000,-500.0,0.0001,2]
[421334482,1777457434000,-1903.0,9.902e-05,2]
[421334489,1777457434000,-400.13940789,0.0001,2]
[421334488,1777457434000,-906.04715309,0.0001,2]
[421334486,1777457434000,-886.1959695,0.0001,2]
[421334497,1777457434000,-500.0,0.0001,2]
[421334490,1777457434000,-628.21875844,0.0001,2]
[421334498,1777457434000,-151.0,0.0001,2]
[421334493,1777457434000,-1382.25787647,0.0001,2]
[421334487,1777457434000,-804.17551885,0.0001,2]
[421334491,1777457434000,-1590.38833666,0.0001,2]
[421334492,1777457434000,-1538.35758749,0.0001,2]
[421334496,1777457434000,-165.33205987,0.0001,2]
[421334495,1777457434000,-191.65275436,0.0001,2]
[421334500,1777457434000,-151.0,0.0001,2]
[421334499,1777457434000,-500.0,0.0001,2]
[421334502,1777457434000,-151.0,0.0001,2]
[421334508,1777457434000,-151.0,0.0001,2]
[421334494,1777457434000,-233.65143497,0.0001,2]
[421334503,1777457434000,-500.0,0.0001,2]
[421334547,1777457435000,-1004.0,0.00010146,2]
[421334545,1777457435000,-1004.0,0.00010146,2]
[421334550,1777457435000,-1004.0,0.00010146,2]
[421334548,1777457435000,-1004.0,0.00010146,2]
[421334551,1777457435000,-1004.0,0.00010146,2]
[421334552,1777457435000,-1004.0,0.00010146,2]
[421334557,1777457435000,-1004.0,0.00010146,2]
[421334555,1777457435000,-1004.0,0.00010146,2]
[421334554,1777457435000,-1004.0,0.00010146,2]
[421334559,1777457435000,-1004.0,0.00010146,2]
[421334556,1777457435000,-1004.0,0.00010146,2]
[421334558,1777457435000,-1004.0,0.00010146,2]
[421334549,1777457435000,-1004.0,0.00010146,2]
[421334560,1777457435000,-1004.0,0.00010146,2]
[421334553,1777457435000,-1004.0,0.00010146,2]
[421334546,1777457435000,-1004.0,0.00010146,2]
[421334533,1777457435000,-500.0,0.0001,2]
[421334543,1777457435000,-609.98,0.000101,2]
[421334561,1777457435000,-1004.0,0.00010146,2]
[421334528,1777457435000,-500.0,0.0001,2]
[421334529,1777457435000,-151.0,0.0001,2]
[421334530,1777457435000,-151.0,0.0001,2]
[421334531,1777457435000,-286.09257819,0.0001,2]
[421334532,1777457435000,-500.0,0.0001,2]
[421334537,1777457435000,-500.0,0.0001,2]
[421334536,1777457435000,-500.0,0.0001,2]
[421334534,1777457435000,-500.0,0.0001,2]
[421334535,1777457435000,-500.0,0.0001,2]
[421334538,1777457435000,-500.0,0.0001,2]
[421334539,1777457435000,-151.0,0.0001,2]
[421334540,1777457435000,-814.78278579,0.0001,2]
[421334544,1777457435000,-166.66,0.00010114,2]
[421334541,1777457435000,-4000.0,0.00010027,2]
[421334542,1777457435000,-150.0,0.00010044,2]
[421334566,1777457435000,-1004.0,0.00010146,2]
[421334574,1777457435000,-150.0,0.00010247,2]
[421334562,1777457435000,-1004.0,0.00010146,2]
[421334585,1777457435000,-630.78800072,0.00010315,2]
[421334583,1777457435000,-4000.0,0.00010278,2]
[421334586,1777457435000,-200.0,0.00010315,2]
[421334591,1777457435000,-2000.0,0.0001032,2]
[421334589,1777457435000,-290.26104003,0.00010315,2]
[421334590,1777457435000,-217.15233878,0.00010315,2]
[421334567,1777457435000,-1004.0,0.00010146,2]
[421334587,1777457435000,-771.01748645,0.00010315,2]
[421334594,1777457435000,-1333.33333,0.00010326,2]
[421334593,1777457435000,-1333.33334,0.00010326,2]
[421334599,1777457435000,-353.647,0.0001048,2]
[421334598,1777457435000,-150.0,0.00010471,2]
[421334597,1777457435000,-2000.0,0.0001042,2]
[421334596,1777457435000,-500.0,0.00010384,2]
[421334595,1777457435000,-2000.0,0.00010379,2]
[421334592,1777457435000,-1333.33333,0.00010326,2]
[421334584,1777457435000,-1155.89,0.00010286,2]
[421334588,1777457435000,-181.08010149,0.00010315,2]
[421334577,1777457435000,-1049.0,0.00010247,2]
[421334578,1777457435000,-1350.0,0.00010247,2]
[421334571,1777457435000,-250.0,0.00010206,2]
[421334563,1777457435000,-1004.0,0.00010146,2]
[421334564,1777457435000,-1004.0,0.00010146,2]
[421334569,1777457435000,-1962.812,0.00010165,2]
[421334568,1777457435000,-1017.6754123,0.00010146,2]
[421334570,1777457435000,-203.0,0.00010175,2]
[421334565,1777457435000,-1004.0,0.00010146,2]
[421334581,1777457435000,-207.0,0.00010277,5]
[421334572,1777457435000,-2000.0,0.0001022,2]
[421334582,1777457435000,-1600.0,0.00010277,2]
[421334576,1777457435000,-3532.0,0.00010247,2]
[421334580,1777457435000,-150.0,0.00010258,2]
[421334579,1777457435000,-552.0,0.00010247,2]
[421334575,1777457435000,-200.0,0.00010247,2]
[421334573,1777457435000,-500.0,0.00010222,2]
[421334612,1777457436000,-500.0,0.00010599,2]
[421334622,1777457436000,-500.0,0.00010599,2]
[421334604,1777457436000,-2000.0,0.0001052,2]
[421334609,1777457436000,-256.8310414,0.0001059,2]
[421334615,1777457436000,-500.0,0.00010599,2]
[421334608,1777457436000,-162.31979731,0.00010576,2]
[421334610,1777457436000,-500.0,0.00010599,2]
[421334607,1777457436000,-160.0,0.00010575,2]
[421334601,1777457436000,-3004.54444599,0.00010486,2]
[421334606,1777457436000,-180.52,0.00010562,2]
[421334614,1777457436000,-500.0,0.00010599,2]
[421334613,1777457436000,-500.0,0.00010599,2]
[421334605,1777457436000,-4000.0,0.00010529,2]
[421334603,1777457436000,-1503.72229894,0.000105,2]
[421334602,1777457436000,-501.80169749,0.00010496,2]
[421334617,1777457436000,-500.0,0.00010599,2]
[421334611,1777457436000,-169.09123736,0.00010599,2]
[421334616,1777457436000,-500.0,0.00010599,2]
[421334600,1777457436000,-3970.873,0.0001048,2]
[421334624,1777457436000,-500.0,0.00010599,2]
[421334634,1777457436000,-1696.65997328,0.000106,3]
[421334635,1777457436000,-1250.66049264,0.000106,3]
[421334637,1777457436000,-443.39958113,0.000106,3]
[421334638,1777457436000,500.0,0.00030136,120]
[421334636,1777457436000,-43748.61053201,0.000106,3]
[421334632,1777457436000,-382671.76937536,0.000106,3]
[421334630,1777457436000,-358.0,0.000106,5]
[421334628,1777457436000,-500.0,0.00010599,2]
[421334631,1777457436000,-250.0,0.000106,2]
[421334625,1777457436000,-500.0,0.00010599,2]
[421334633,1777457436000,-156747.63451296,0.000106,3]
[421334620,1777457436000,-500.0,0.00010599,2]
[421334619,1777457436000,-500.0,0.00010599,2]
[421334623,1777457436000,-331.76980841,0.00010599,2]
[421334629,1777457436000,-416.0,0.000106,5]
[421334621,1777457436000,-500.0,0.00010599,2]
[421334627,1777457436000,-500.0,0.00010599,2]
[421334618,1777457436000,-500.0,0.00010599,2]
[421334626,1777457436000,-500.0,0.00010599,2]
[421334645,1777457437000,500.0,0.00030136,120]
[421334644,1777457437000,500.0,0.00030136,120]
[421334643,1777457437000,500.0,0.00030136,120]
[421334642,1777457437000,500.0,0.00030136,120]
[421334641,1777457437000,500.0,0.00030136,120]
[421334640,1777457437000,500.0,0.00030136,120]
[421334639,1777457437000,500.0,0.00030136,120]
[421334654,1777457438000,-500.0,9.288e-05,2]
[421334656,1777457438000,-330.56,0.00010486,2]
[421334657,1777457438000,-1672.46963066,0.00010486,2]
[421334660,1777457438000,-36984.69245172,0.000106,3]
[421334661,1777457438000,-48993.48432967,0.000106,3]
[421334655,1777457438000,-151.0,0.00010326,2]
[421334662,1777457438000,-829.67010334,0.000106,3]
[421334659,1777457438000,-38871.50000001,0.000106,3]
[421334663,1777457438000,-38356.5,0.000106,3]
[421334664,1777457438000,-603.22941727,0.000106,3]
[421334665,1777457438000,-1838.8344136,0.000106,3]
[421334658,1777457438000,-2693.52549128,0.000106,3]
[421334943,1777457441000,-893.67907922,0.000106,3]
[421334935,1777457441000,-61115.99005105,0.000106,3]
[421334937,1777457441000,-1013.80750926,0.000106,3]
[421335024,1777457441000,4034.05252928,8.2e-05,2]
[421334933,1777457441000,-1559.00469221,0.00010486,2]
[421335288,1777457443000,-359.09560151,0.000106,3]
[421335272,1777457443000,-1248.70543463,0.000106,3]
[421335269,1777457443000,-3783.0,0.00010062,2]
[421335611,1777457446000,-21713.09925925,0.000106,3]
[421335608,1777457446000,-7157.50203352,0.000106,3]
[421335600,1777457446000,-4708.52,0.000106,3]
[421335820,1777457453000,421.17947868,8.19e-05,2]
[421335821,1777457463000,1863.0035,8.085e-05,2]
[421335823,1777457488000,525.7166,0.00030136,120]
[421335822,1777457488000,525.7166,0.00030136,120]
[421335825,1777457489000,525.7166,0.00030136,120]
[421335824,1777457489000,525.7166,0.00030136,120]
[421335827,1777457490000,525.7166,0.00030136,120]
[421335826,1777457490000,525.7166,0.00030136,120]
[421335830,1777457491000,525.7166,0.00030136,120]
[421335829,1777457491000,525.7166,0.00030136,120]
[421335828,1777457491000,525.7166,0.00030136,120]
[421335831,1777457492000,525.7166,0.00030136,120]
[421335832,1777457492000,525.7166,0.00030136,120]
[421335834,1777457493000,525.7166,0.00030136,120]
[421335833,1777457493000,525.7166,0.00030136,120]
[421335835,1777457494000,525.7166,0.00030136,120]
[421335837,1777457494000,525.7166,0.00030136,120]
[421335836,1777457494000,525.7166,0.00030136,120]
[421335839,1777457495000,525.7166,0.00030136,120]
[421335838,1777457495000,525.7166,0.00030136,120]
[421335842,1777457496000,525.7166,0.00030136,120]
[421335841,1777457496000,525.7166,0.00030136,120]
[421335840,1777457496000,525.7166,0.00030136,120]
[421335845,1777457498000,525.7166,0.00030136,120]
[421335844,1777457498000,525.7166,0.00030136,120]
[421335843,1777457498000,525.7166,0.00030136,120]
[421335847,1777457499000,525.7166,0.00030136,120]
[421335846,1777457499000,525.7166,0.00030136,120]
[421335848,1777457500000,525.7166,0.00030136,120]
[421335849,1777457501000,525.7166,0.00030136,120]
[421335850,1777457501000,525.7166,0.00030136,120]
[421335852,1777457502000,525.7166,0.00030136,120]
[421335851,1777457502000,525.7166,0.00030136,120]
[421335854,1777457503000,525.7166,0.00030136,120]
[421335853,1777457503000,525.7166,0.00030136,120]
[421335857,1777457504000,525.7166,0.00030136,120]
[421335856,1777457504000,525.7166,0.00030136,120]
[421335855,1777457504000,525.7166,0.00030136,120]
[421335859,1777457505000,525.7166,0.00030136,120]
[421335858,1777457505000,525.7166,0.00030136,120]
[421335861,1777457506000,525.7166,0.00030136,120]
[421335860,1777457506000,525.7166,0.00030136,120]
[421335863,1777457507000,525.7166,0.00030136,120]
[421335862,1777457507000,525.7166,0.00030136,120]
[421335865,1777457508000,525.7166,0.00030136,120]
[421335864,1777457508000,525.7166,0.00030136,120]
[421335868,1777457509000,525.7166,0.00030136,120]
[421335867,1777457509000,525.7166,0.00030136,120]
[421335866,1777457509000,525.7166,0.00030136,120]
[421335870,1777457510000,525.7166,0.00030136,120]
[421335869,1777457510000,525.7166,0.00030136,120]
[421335871,1777457511000,525.7166,0.00030136,120]
[421335873,1777457511000,525.7166,0.00030136,120]
[421335872,1777457511000,525.7166,0.00030136,120]
[421335875,1777457512000,525.7166,0.00030136,120]
[421335874,1777457512000,525.7166,0.00030136,120]
[421335877,1777457513000,525.7166,0.00030136,120]
[421335876,1777457513000,525.7166,0.00030136,120]
[421335880,1777457514000,525.7166,0.00030136,120]
[421335879,1777457514000,525.7166,0.00030136,120]
[421335878,1777457514000,525.7166,0.00030136,120]
[421335881,1777457515000,525.7206,0.00030136,120]
[421335888,1777457936000,-200.0,9.333e-05,2]
[421335890,1777458029000,150.0,0.00011233,120]
[421335894,1777458036000,2009.15,5.095e-05,2]
[421335893,1777458036000,2009.15,4.853e-05,2]
[421335892,1777458036000,2009.15,4.61e-05,2]
[421335895,1777458036000,2009.15,5.338e-05,2]
[421335896,1777458037000,1963.41,5.58e-05,2]
[421335897,1777458037000,45.74,5.58e-05,2]
[421335900,1777458037000,2009.15,6.308e-05,2]
[421335899,1777458037000,2009.15,6.066e-05,2]
[421335898,1777458037000,2009.15,5.823e-05,2]
[421335901,1777458037000,2009.15,6.551e-05,2]
[421335905,1777458038000,2009.15,7.521e-05,2]
[421335904,1777458038000,2009.15,7.279e-05,2]
[421335903,1777458038000,2009.15,7.036e-05,2]
[421335902,1777458038000,2009.15,6.794e-05,2]
[421335909,1777458039000,2009.15,8.249e-05,2]
[421335908,1777458039000,2009.15,8.007e-05,2]
[421335907,1777458039000,45.74,7.764e-05,2]
[421335906,1777458039000,1963.41,7.764e-05,2]
[421335913,1777458233000,814.70431921,0.000166,120]
[421335912,1777458233000,244.0,0.0002,120]
[421335917,1777458358000,756.0,0.000166,120]
[421335916,1777458358000,244.0,0.0002,120]
[421335919,1777458481000,4366.41225029,8e-05,2]
[421335920,1777458486000,980.25329907,0.00026038,120]
[421335921,1777458486000,980.25329907,0.00026108,120]
[421335949,1777458631000,-50736.41376445,8.954e-05,2]
[421335956,1777458631000,-1000.0,9.262e-05,2]
[421335957,1777458631000,-500.0,9.274e-05,2]
[421335960,1777458631000,-500.0,9.332e-05,2]
[421335950,1777458631000,-222.32132659,8.977e-05,2]
[421335951,1777458631000,-2009.15,8.977e-05,2]
[421335955,1777458631000,-2009.15,9.22e-05,2]
[421335952,1777458631000,-960.0,9.08e-05,2]
[421335959,1777458631000,-193.97303453,9.332e-05,2]
[421335958,1777458631000,-23957.98,9.29e-05,2]
[421335940,1777458631000,-12156.93,8.566e-05,2]
[421335945,1777458631000,-20262.19,8.865e-05,2]
[421335943,1777458631000,-2009.15,8.735e-05,2]
[421335941,1777458631000,-222.32132661,8.566e-05,2]
[421335947,1777458631000,-150.0,8.953e-05,2]
[421335948,1777458631000,-69175.4803874,8.954e-05,2]
[421335944,1777458631000,-222.32132659,8.772e-05,2]
[421335946,1777458631000,-1000.0,8.953e-05,2]
[421335961,1777458631000,-500.0,9.332e-05,2]
[421335939,1777458631000,-300.0,8.565e-05,2]
[421335937,1777458631000,-1148.12,8.449e-05,2]
[421335938,1777458631000,-2009.15,8.492e-05,2]
[421335935,1777458631000,-249.7,8.353e-05,2]
[421335936,1777458631000,-200.0,8.37e-05,2]
[421335942,1777458631000,-500.0,8.712e-05,2]
[421335963,1777458631000,-500.0,9.332e-05,2]
[421335953,1777458631000,-177.2202,9.2e-05,2]
[421335962,1777458631000,-500.0,9.332e-05,2]
[421335964,1777458631000,-500.0,9.332e-05,2]
[421336005,1777458631000,-300.0,9.332e-05,2]
[421336009,1777458631000,-474.63032432,9.333e-05,2]
[421336010,1777458631000,-503.70314734,9.333e-05,2]
[421336007,1777458631000,-5786.18338668,9.333e-05,2]
[421336003,1777458631000,-500.0,9.332e-05,2]
[421336006,1777458631000,-62074.4212316,9.333e-05,2]
[421336004,1777458631000,-500.0,9.332e-05,2]
[421336008,1777458631000,-4230.82512797,9.333e-05,2]
[421336002,1777458631000,-500.0,9.332e-05,2]
[421336001,1777458631000,-500.0,9.332e-05,2]
[421335998,1777458631000,-364.92821469,9.332e-05,2]
[421335986,1777458631000,-500.0,9.332e-05,2]
[421335954,1777458631000,-2000.0,9.22e-05,2]
[421335995,1777458631000,-500.0,9.332e-05,2]
[421335981,1777458631000,-500.0,9.332e-05,2]
[421335992,1777458631000,-500.0,9.332e-05,2]
[421335977,1777458631000,-500.0,9.332e-05,2]
[421335979,1777458631000,-500.0,9.332e-05,2]
[421335988,1777458631000,-500.0,9.332e-05,2]
[421335990,1777458631000,-500.0,9.332e-05,2]
[421335972,1777458631000,-500.0,9.332e-05,2]
[421335975,1777458631000,-500.0,9.332e-05,2]
[421335969,1777458631000,-500.0,9.332e-05,2]
[421335967,1777458631000,-500.0,9.332e-05,2]
[421335966,1777458631000,-500.0,9.332e-05,2]
[421335983,1777458631000,-500.0,9.332e-05,2]
[421335965,1777458631000,-500.0,9.332e-05,2]
[421336012,1777458637000,-2480.69075194,9.333e-05,2]
[421336013,1777458637000,-2488.11649926,9.333e-05,2]
[421336016,1777458637000,-829.67010334,9.333e-05,2]
[421336015,1777458637000,-48993.48432967,9.333e-05,2]
[421336014,1777458637000,-36984.69245172,9.333e-05,2]
[421336029,1777458640000,-875.50000001,9.333e-05,2]
[421336027,1777458640000,-7791.6,9.333e-05,2]
[421336031,1777458640000,-1415.41620489,9.333e-05,2]
[421336030,1777458640000,-2742.37269276,9.333e-05,2]
[421336028,1777458640000,-554.59764202,9.333e-05,2]
[421336056,1777458645000,-1260.97743399,9.333e-05,2]
[421336057,1777458645000,-12430.712656,9.333e-05,2]
[421336059,1777458646000,-1065.32192759,9.333e-05,2]
[421336060,1777458646000,-339.39253979,9.333e-05,2]
[421336080,1777458912000,1103.91,0.00030137,120]
[421336088,1777459801000,5000.0,0.00030137,120]
[421336099,1777459831000,-300.0,8.608e-05,2]
[421336102,1777459831000,-2123.97128579,8.609e-05,2]
[421336101,1777459831000,-1200.0,8.608e-05,2]
[421336109,1777459831000,-8644.86836957,8.609e-05,2]
[421336110,1777459831000,-393.653476,8.609e-05,2]
[421336111,1777459831000,-1363.9028499,8.609e-05,2]
[421336115,1777459831000,-1251.8382809,8.609e-05,2]
[421336112,1777459831000,-303.72702952,8.609e-05,2]
[421336114,1777459831000,-464.72178409,8.609e-05,2]
[421336116,1777459831000,-1248.86929294,8.609e-05,2]
[421336118,1777459831000,-250.0,8.609e-05,2]
[421336119,1777459831000,-2287.51677326,8.609e-05,2]
[421336105,1777459831000,-546.3022,8.609e-05,2]
[421336113,1777459831000,-673.97872682,8.609e-05,2]
[421336117,1777459831000,-3058.63601826,8.609e-05,2]
[421336158,1777459837000,-192.95,8.388e-05,2]
[421336160,1777459837000,-290.570001,8.609e-05,2]
[421336159,1777459837000,-806.59,8.609e-05,2]
[421336170,1777459838000,-640.62119342,8.619e-05,2]
[421336169,1777459838000,-23155.3758884,8.619e-05,2]
[421336168,1777459838000,-829.67010334,8.619e-05,2]
[421336166,1777459838000,-36984.69245172,8.619e-05,2]
[421336167,1777459838000,-48993.48432967,8.619e-05,2]
[421336165,1777459838000,-1221.80961954,8.619e-05,2]
[421336164,1777459838000,-10530.9698912,8.619e-05,2]
[421336163,1777459838000,-261.0,8.609e-05,2]
[421336162,1777459838000,-28128.5301088,8.609e-05,2]
[421336161,1777459838000,-5262.04689355,8.609e-05,2]
[421336189,1777459840000,-15497.97035719,8.619e-05,2]
[421336190,1777459840000,-3963.85509281,8.619e-05,2]
[421336192,1777459840000,-880.13030887,8.619e-05,2]
[421336191,1777459840000,-14005.17690587,8.619e-05,2]
[421336197,1777459840000,-13441.12926979,8.619e-05,2]
[421336193,1777459840000,-333.15468675,8.619e-05,2]
[421336194,1777459840000,-894.29909889,8.619e-05,2]
[421336196,1777459840000,-762.577,8.619e-05,2]
[421336195,1777459840000,-14029.80278619,8.619e-05,2]
[421336216,1777459842000,-20000.0,8.811e-05,2]
[421336214,1777459842000,-809.12,8.748e-05,2]
[421336213,1777459842000,-62133.44101635,8.619e-05,2]
[421336217,1777459842000,-500.0,8.867e-05,2]
[421336215,1777459842000,-153.87363941,8.748e-05,2]
[421336220,1777459842000,-1000.0,8.926e-05,2]
[421336221,1777459842000,-1799.63935786,9e-05,2]
[421336219,1777459842000,-1852.42,8.895e-05,2]
[421336222,1777459842000,-500.0,9.055e-05,2]
[421336218,1777459842000,-327.87,8.895e-05,2]
[421336254,1777459843000,-217.0,9.851e-05,2]
[421336255,1777459843000,-274.0,9.851e-05,2]
[421336264,1777459843000,-187.43129394,9.888e-05,2]
[421336253,1777459843000,-1049.0,9.851e-05,2]
[421336263,1777459843000,-150.0,9.888e-05,2]
[421336265,1777459843000,-150.0,9.888e-05,2]
[421336261,1777459843000,-166.66,9.879e-05,2]
[421336258,1777459843000,-1663.0,9.851e-05,2]
[421336257,1777459843000,-416.0,9.851e-05,2]
[421336256,1777459843000,-3783.0,9.851e-05,2]
[421336259,1777459843000,-6246.15256328,9.87e-05,2]
[421336266,1777459843000,-150.0,9.888e-05,2]
[421336269,1777459843000,-184.86011981,9.888e-05,2]
[421336270,1777459843000,-500.0,9.888e-05,2]
[421336267,1777459843000,-150.0,9.888e-05,2]
[421336275,1777459843000,-500.0,9.888e-05,2]
[421336276,1777459843000,-500.0,9.888e-05,2]
[421336274,1777459843000,-500.0,9.888e-05,2]
[421336272,1777459843000,-500.0,9.888e-05,2]
[421336273,1777459843000,-500.0,9.888e-05,2]
[421336271,1777459843000,-500.0,9.888e-05,2]
[421336277,1777459843000,-500.0,9.888e-05,2]
[421336246,1777459843000,-885.16573534,9.729e-05,2]
[421336268,1777459843000,-150.0,9.888e-05,2]
[421336249,1777459843000,-249.30149188,9.729e-05,2]
[421336233,1777459843000,-279.9045709,9.181e-05,2]
[421336247,1777459843000,-181.08010149,9.729e-05,2]
[421336231,1777459843000,-151.0,9.181e-05,2]
[421336223,1777459843000,-2000.0,9.101e-05,2]
[421336230,1777459843000,-743.50770149,9.181e-05,2]
[421336224,1777459843000,-22535.829889,9.106e-05,2]
[421336225,1777459843000,-2000.0,9.16e-05,2]
[421336228,1777459843000,-721.12765535,9.181e-05,2]
[421336227,1777459843000,-472.90409692,9.181e-05,2]
[421336226,1777459843000,-192.0,9.175e-05,2]
[421336229,1777459843000,-201.27626716,9.181e-05,2]
[421336232,1777459843000,-174.61919141,9.181e-05,2]
[421336235,1777459843000,-27730.13,9.218e-05,2]
[421336252,1777459843000,-2988.835,9.851e-05,2]
[421336278,1777459843000,-501.53627499,9.93e-05,2]
[421336236,1777459843000,-809.12,9.234e-05,2]